fUSD/lending_fUSD_20250118
["ID","MTS","AMOUNT","RATE_DAILY","PERIOD"]
[349485454,1737213039702,-151.0,0.0001979,2]
[349485455,1737213039713,-151.0,0.0001979,2]
[349485456,1737213039722,-151.0,0.0001979,2]
[349485457,1737213039731,-151.0,0.0001979,2]
[349485458,1737213039742,-154.370443,0.0001979,2]
[349485459,1737213039752,-151.0,0.0001979,2]
[349485460,1737213039761,-929.91917,0.0001979,2]
[349485461,1737213039771,-929.91917,0.0001979,2]
[349485462,1737213039781,-151.0,0.0001979,2]
[349485463,1737213039790,-151.0,0.0001979,2]
[349485464,1737213039799,-1058.665786,0.0001979,2]
[349485465,1737213039808,-1058.665786,0.0001979,2]
[349485466,1737213039818,-280.317599,0.0001979,2]
[349485467,1737213039828,-151.0,0.0001979,2]
[349485468,1737213039837,-151.0,0.0001979,2]
[349485469,1737213039846,-200.0,0.0001979,2]
[349485470,1737213039856,-718.296221,0.0001979,2]
[349485471,1737213039865,-718.296221,0.0001979,2]
[349485473,1737213039874,-184.197365,0.0001979,2]
[349485475,1737213039884,-184.197365,0.0001979,2]
[349485477,1737213039894,-151.0,0.0001979,2]
[349485479,1737213039903,-151.0,0.0001979,2]
[349485481,1737213039912,-233.377542,0.0001979,2]
[349485483,1737213039922,-233.377542,0.0001979,2]
[349485485,1737213039932,-151.0,0.0001979,2]
[349485487,1737213039942,-150.0,0.00019798,2]
[349485489,1737213039952,-150.0,0.00019798,2]
[349485491,1737213039961,-24465.6475404,0.000198,2]
[349485493,1737213039971,-187.39570595,0.000198,2]
[349485495,1737213039981,-151.0,0.000198,2]
[349485497,1737213039990,-929.91917,0.000198,2]
[349485499,1737213040000,-929.91917,0.000198,2]
[349485501,1737213040009,-151.0,0.000198,2]
[349485503,1737213040019,-151.0,0.000198,2]
[349485505,1737213040029,-1058.665786,0.000198,2]
[349485507,1737213040038,-1058.665786,0.000198,2]
[349485509,1737213040047,-575.20677869,0.000198,2]
[349485511,1737213040057,-151.0,0.000198,2]
[349485513,1737213040067,-151.0,0.000198,2]
[349485514,1737213040077,-718.296221,0.000198,2]
[349485515,1737213040087,-718.296221,0.000198,2]
[349485516,1737213040097,-184.197365,0.000198,2]
[349485518,1737213040107,-184.197365,0.000198,2]
[349485520,1737213040116,-301.129398,0.000198,2]
[349485521,1737213040126,-151.0,0.000198,2]
[349485523,1737213040136,-233.377542,0.000198,2]
[349485525,1737213040146,-400.0,0.000198,7]
[349485527,1737213040156,-233.377542,0.000198,2]
[349485529,1737213040166,-151.0,0.000198,2]
[349485531,1737213040176,-153.80145117,0.000198,2]
[349485533,1737213040186,-151.02704407,0.00019803,2]
[349485534,1737213040195,-150.0,0.00019806,2]
[349485535,1737213040205,-150.0,0.0001981,2]
[349485536,1737213040214,-150.0,0.00019813,2]
[349485537,1737213040223,-217.0,0.0001982,2]
[349485538,1737213040232,-150.0,0.00019823,2]
[349485539,1737213040242,-1000.0,0.00019826,2]
[349485540,1737213040252,-150.0,0.00019827,2]
[349485541,1737213040262,-150.0,0.00019829,2]
[349485542,1737213040271,-150.0,0.00019831,2]
[349485543,1737213040281,-150.0,0.00019832,2]
[349485544,1737213040290,-240.07836445,0.00019833,2]
[349485545,1737213040299,-150.0,0.00019843,2]
[349485546,1737213040308,-150.0,0.00019848,2]
[349485547,1737213040318,-150.0,0.00019855,2]
[349485548,1737213040328,-150.0,0.00019856,2]
[349485549,1737213040337,-410.0,0.00019863,2]
[349485550,1737213040346,-150.0,0.00019865,2]
[349485551,1737213040356,-150.0,0.00019868,2]
[349485552,1737213040366,-150.0,0.00019886,2]
[349485553,1737213040376,-671.13182247,0.0001989,2]
[349485554,1737213040387,-671.13182247,0.0001989,2]
[349485555,1737213040396,-671.13182247,0.0001989,2]
[349485556,1737213040406,-151.06,0.0001989,2]
[349485557,1737213040416,-151.06,0.0001989,2]
[349485558,1737213040425,-151.06,0.0001989,2]
[349485559,1737213040435,-151.06,0.0001989,2]
[349485560,1737213040445,-151.06,0.0001989,2]
[349485561,1737213040454,-151.06,0.0001989,2]
[349485562,1737213040463,-151.06,0.0001989,2]
[349485563,1737213040472,-151.06,0.0001989,2]
[349485564,1737213040482,-151.06,0.0001989,2]
[349485565,1737213040491,-151.06,0.0001989,2]
[349485566,1737213040500,-151.06,0.0001989,2]
[349485567,1737213040509,-151.06,0.0001989,2]
[349485568,1737213040518,-151.06,0.0001989,2]
[349485569,1737213040527,-151.06,0.0001989,2]
[349485570,1737213040537,-151.06,0.0001989,2]
[349485571,1737213040546,-151.06,0.0001989,2]
[349485572,1737213040555,-151.06,0.0001989,2]
[349485573,1737213040564,-151.06,0.0001989,2]
[349485574,1737213040574,-151.06,0.0001989,2]
[349485575,1737213040583,-151.06,0.0001989,2]
[349485576,1737213040592,-151.06,0.0001989,2]
[349485577,1737213040601,-151.06,0.0001989,2]
[349485578,1737213040610,-151.06,0.0001989,2]
[349485579,1737213040620,-151.06,0.0001989,2]
[349485580,1737213040629,-151.06,0.0001989,2]
[349485581,1737213040639,-151.06,0.0001989,2]
[349485582,1737213040648,-151.06,0.0001989,2]
[349485587,1737213040804,-151.06,0.0001989,2]
[349485588,1737213040814,-151.06,0.0001989,2]
[349485589,1737213040825,-151.06,0.0001989,2]
[349485590,1737213040834,-151.06,0.0001989,2]
[349485591,1737213040843,-151.06,0.0001989,2]
[349485592,1737213040854,-151.06,0.0001989,2]
[349485593,1737213040865,-151.06,0.0001989,2]
[349485594,1737213040874,-151.06,0.0001989,2]
[349485595,1737213040884,-151.06,0.0001989,2]
[349485596,1737213040893,-151.06,0.0001989,2]
[349485597,1737213040903,-151.06,0.0001989,2]
[349485598,1737213040912,-151.06,0.0001989,2]
[349485599,1737213040922,-151.06,0.0001989,2]
[349485600,1737213040932,-151.06,0.0001989,2]
[349485601,1737213040941,-151.06,0.0001989,2]
[349485602,1737213040952,-151.06,0.0001989,2]
[349485603,1737213040962,-151.06,0.0001989,2]
[349485604,1737213040972,-151.06,0.0001989,2]
[349485605,1737213040981,-151.06,0.0001989,2]
[349485606,1737213040991,-151.06,0.0001989,2]
[349485607,1737213041000,-151.06,0.0001989,2]
[349485608,1737213041009,-151.06,0.0001989,2]
[349485609,1737213041019,-151.06,0.0001989,2]
[349485610,1737213041028,-151.06,0.0001989,2]
[349485611,1737213041038,-151.06,0.0001989,2]
[349485612,1737213041047,-151.06,0.0001989,2]
[349485613,1737213041057,-151.06,0.0001989,2]
[349485614,1737213041069,-151.06,0.0001989,2]
[349485615,1737213041078,-151.06,0.0001989,2]
[349485616,1737213041087,-151.06,0.0001989,2]
[349485617,1737213041097,-151.06,0.0001989,2]
[349485618,1737213041106,-151.06,0.0001989,2]
[349485619,1737213041115,-151.06,0.0001989,2]
[349485620,1737213041124,-151.06,0.0001989,2]
[349485621,1737213041133,-151.06,0.0001989,2]
[349485622,1737213041142,-151.06,0.0001989,2]
[349485623,1737213041151,-151.06,0.0001989,2]
[349485624,1737213041160,-151.06,0.0001989,2]
[349485625,1737213041169,-151.06,0.0001989,2]
[349485626,1737213041178,-151.06,0.0001989,2]
[349485627,1737213041187,-151.06,0.0001989,2]
[349485628,1737213041196,-151.06,0.0001989,2]
[349485629,1737213041206,-151.06,0.0001989,2]
[349485630,1737213041215,-151.06,0.0001989,2]
[349485631,1737213041224,-151.06,0.0001989,2]
[349485632,1737213041233,-151.06,0.0001989,2]
[349485633,1737213041243,-151.06,0.0001989,2]
[349485634,1737213041252,-151.06,0.0001989,2]
[349485635,1737213041263,-151.06,0.0001989,2]
[349485636,1737213041273,-151.06,0.0001989,2]
[349485637,1737213041282,-151.06,0.0001989,2]
[349485638,1737213041291,-1230.15,0.00019897,2]
[349485639,1737213041300,-238.99433261,0.00019897,2]
[349485640,1737213041309,-500.0,0.00019898,2]
[349485641,1737213041320,-500.0,0.00019898,2]
[349485642,1737213041329,-500.0,0.00019898,2]
[349485643,1737213041338,-500.0,0.00019898,2]
[349485644,1737213041347,-500.0,0.00019898,2]
[349485645,1737213041356,-500.0,0.00019898,2]
[349485646,1737213041367,-1479.14,0.00019898,2]
[349485647,1737213041376,-500.0,0.00019898,2]
[349485648,1737213041385,-500.0,0.00019899,2]
[349485649,1737213041394,-500.0,0.00019899,2]
[349485650,1737213041403,-500.0,0.00019899,2]
[349485651,1737213041412,-247.0187486,0.00019899,2]
[349485652,1737213041422,-151.0,0.00019899,2]
[349485653,1737213041431,-500.0,0.00019899,2]
[349485654,1737213041443,-500.0,0.00019899,2]
[349485655,1737213041453,-500.0,0.00019899,2]
[349485656,1737213041462,-500.0,0.00019899,2]
[349485657,1737213041473,-500.0,0.00019899,2]
[349485658,1737213041482,-523.85514847,0.00019899,2]
[349485659,1737213041492,-319.356524,0.00019899,2]
[349485660,1737213041502,-500.0,0.00019899,2]
[349485661,1737213041512,-1230.15,0.00019899,2]
[349485662,1737213041522,-1230.15,0.00019899,2]
[349485663,1737213041531,-1230.15,0.00019899,2]
[349485664,1737213041541,-1230.15,0.00019899,2]
[349485665,1737213041550,-1230.15,0.00019899,2]
[349485666,1737213041559,-1230.15,0.00019899,2]
[349485667,1737213041570,-1230.15,0.00019899,2]
[349485668,1737213041579,-1230.15,0.00019899,2]
[349485669,1737213041589,-1230.15,0.00019899,2]
[349485670,1737213041599,-1230.15,0.00019899,2]
[349485671,1737213041608,-1230.15,0.00019899,2]
[349485672,1737213041617,-1230.15,0.00019899,2]
[349485673,1737213041627,-1230.15,0.00019899,2]
[349485674,1737213041637,-1230.15,0.00019899,2]
[349485675,1737213041647,-1230.15,0.00019899,2]
[349485676,1737213041656,-1230.15,0.00019899,2]
[349485677,1737213041669,-1230.15,0.00019899,2]
[349485678,1737213041679,-1230.15,0.00019899,2]
[349485679,1737213041688,-1230.15,0.00019899,2]
[349485680,1737213041698,-1230.19943178,0.00019899,2]
[349485681,1737213041708,-1058.665786,0.00019899,2]
[349485682,1737213041718,-1058.665786,0.00019899,2]
[349485683,1737213041728,-181.930636,0.00019899,2]
[349485684,1737213041739,-500.0,0.00019899,2]
[349485685,1737213041748,-500.0,0.00019899,2]
[349485686,1737213041759,-500.0,0.00019899,2]
[349485687,1737213041768,-500.0,0.00019899,2]
[349485688,1737213041778,-500.0,0.00019899,2]
[349485689,1737213041788,-500.0,0.00019899,2]
[349485690,1737213041797,-500.0,0.00019899,2]
[349485691,1737213041807,-278.65098732,0.00019899,2]
[349485692,1737213041817,-151.0,0.00019899,2]
[349485693,1737213041826,-718.296221,0.00019899,2]
[349485694,1737213041837,-718.296221,0.00019899,2]
[349485695,1737213041847,-184.197365,0.00019899,2]
[349485696,1737213041857,-184.197365,0.00019899,2]
[349485697,1737213041867,-151.0,0.00019899,2]
[349485698,1737213041877,-233.377542,0.00019899,2]
[349485699,1737213041887,-233.377542,0.00019899,2]
[349485700,1737213041897,-301.903294,0.00019899,2]
[349485701,1737213041906,-330.75903086,0.00019899,2]
[349485702,1737213041916,-500.0,0.00019899,2]
[349485703,1737213041926,-500.0,0.00019899,2]
[349485704,1737213041935,-430.96205867,0.00019899,2]
[349485705,1737213041944,-500.0,0.00019899,2]
[349485706,1737213041953,-500.0,0.00019899,2]
[349485707,1737213041964,-500.0,0.00019899,2]
[349485708,1737213041974,-500.0,0.00019899,2]
[349485709,1737213041983,-500.0,0.00019899,2]
[349485710,1737213041992,-500.0,0.00019899,2]
[349485711,1737213042002,-500.0,0.00019899,2]
[349485712,1737213042011,-500.0,0.00019899,2]
[349485713,1737213042021,-500.0,0.00019899,2]
[349485714,1737213042030,-500.0,0.00019899,2]
[349485715,1737213042040,-500.0,0.00019899,2]
[349485716,1737213042049,-500.0,0.00019899,2]
[349485717,1737213042059,-500.0,0.00019899,2]
[349485718,1737213042071,-548.9,0.00019899,2]
[349485719,1737213042082,-229.04,0.00019899,2]
[349485720,1737213042091,-500.0,0.00019899,2]
[349485721,1737213042100,-362.97731496,0.00019899,2]
[349485722,1737213042110,-1479.14,0.00019899,2]
[349485723,1737213042120,-1479.14,0.00019899,2]
[349485724,1737213042130,-1479.14,0.00019899,2]
[349485725,1737213042139,-1479.14,0.00019899,2]
[349485726,1737213042148,-1479.14,0.00019899,2]
[349485727,1737213042157,-1479.14,0.00019899,2]
[349485728,1737213042167,-1479.14,0.00019899,2]
[349485729,1737213042176,-1479.14,0.00019899,2]
[349485730,1737213042186,-1479.14,0.00019899,2]
[349485731,1737213042195,-1479.14,0.00019899,2]
[349485732,1737213042205,-1479.14,0.00019899,2]
[349485733,1737213042214,-1479.14,0.00019899,2]
[349485734,1737213042224,-1479.14,0.00019899,2]
[349485735,1737213042233,-1479.14,0.00019899,2]
[349485736,1737213042243,-1479.14,0.00019899,2]
[349485737,1737213042252,-1479.14,0.00019899,2]
[349485738,1737213042262,-1479.14,0.00019899,2]
[349485739,1737213042271,-1479.36108925,0.00019899,2]
[349485740,1737213042281,-500.0,0.00019899,2]
[349485741,1737213042290,-500.0,0.00019899,2]
[349485742,1737213042300,-500.0,0.00019899,2]
[349485743,1737213042309,-500.0,0.00019899,2]
[349485744,1737213042320,-500.0,0.00019899,2]
[349485745,1737213042329,-500.0,0.00019899,2]
[349485746,1737213042339,-500.0,0.00019899,2]
[349485747,1737213042348,-357.98593892,0.00019899,2]
[349485748,1737213042359,-158304.00700882,0.000199,2]
[349485749,1737213042368,-486.66463814,0.000199,2]
[349485750,1737213042378,-4110765.60999367,0.000199,10]
[349485751,1737213042418,-1942.37721319,0.000199,10]
[349485752,1737213042429,-24245.248312,0.000199,10]
[349485753,1737213042440,-1215.03383588,0.000199,10]
[349485754,1737213042469,-296.9,0.000199,10]
[349485755,1737213042480,-2200.45424,0.000199,10]
[349485756,1737213042491,-1353.23790222,0.000199,10]
[349485757,1737213042503,-305.91068178,0.000199,10]
[349485758,1737213042515,-708.92924413,0.000199,10]
[349485759,1737213042526,-52402.68004866,0.000199,10]
[349485760,1737213042537,-1485.09389555,0.000199,10]
[349485761,1737213042548,-8712058.12154935,0.000199,10]
[349485762,1737213042557,-151.0,0.000199,2]
[349485763,1737213042568,-154.839527,0.000199,15]
[349485764,1737213042577,-154.839527,0.000199,15]
[349485765,1737213042587,-154.839527,0.000199,15]
[349485766,1737213042596,-319.356524,0.000199,10]
[349485767,1737213042605,-319.356524,0.000199,15]
[349485768,1737213042615,-319.356524,0.000199,15]
[349485769,1737213042624,-319.356524,0.000199,15]
[349485770,1737213042633,-319.356524,0.000199,15]
[349485771,1737213042643,-319.356524,0.000199,15]
[349485772,1737213042653,-151.0,0.000199,2]
[349485773,1737213042665,-929.91917,0.000199,2]
[349485774,1737213042674,-929.91917,0.000199,2]
[349485775,1737213042683,-151.0,0.000199,2]
[349485776,1737213042693,-275.792104,0.000199,2]
[349485777,1737213042703,-1058.665786,0.000199,2]
[349485778,1737213042713,-1058.665786,0.000199,2]
[349485779,1737213042723,-151.0,0.000199,2]
[349485780,1737213042732,-718.296221,0.000199,2]
[349485781,1737213042741,-718.296221,0.000199,2]
[349485782,1737213042751,-184.197365,0.000199,2]
[349485783,1737213042760,-184.197365,0.000199,2]
[349485784,1737213042770,-151.0,0.000199,2]
[349485785,1737213042780,-233.377542,0.000199,2]
[349485786,1737213042789,-400.0,0.000199,7]
[349485788,1737213042799,-233.377542,0.000199,2]
[349485789,1737213042808,-178.72418977,0.000199,2]
[349485790,1737213042819,-151.0,0.000199,2]
[349485791,1737213042828,-151.0,0.000199,2]
[349485792,1737213042838,-151.0,0.000199,2]
[349485793,1737213042847,-151.0,0.000199,2]
[349485794,1737213042856,-1350.0,0.000199,2]
[349485795,1737213042866,-1350.0,0.000199,2]
[349485796,1737213042875,-1386.27732,0.000199,2]
[349485797,1737213042885,-151.0,0.000199,2]
[349485798,1737213042895,-1386.27732,0.000199,2]
[349485799,1737213042905,-151.0,0.000199,2]
[349485800,1737213042914,-151.0,0.000199,2]
[349485801,1737213042923,-201.32011447,0.000199,2]
[349485802,1737213042933,-74250.562,0.0001991,2]
[349485803,1737213042943,-151.0,0.0001991,2]
[349485804,1737213042952,-151.970098,0.0001991,2]
[349485806,1737213042962,-929.91917,0.0001991,2]
[349485808,1737213042972,-929.91917,0.0001991,2]
[349485810,1737213042981,-151.0,0.0001991,2]
[349485812,1737213042991,-1058.665786,0.0001991,2]
[349485814,1737213043001,-1058.665786,0.0001991,2]
[349485816,1737213043011,-151.0,0.0001991,2]
[349485818,1737213043020,-718.296221,0.0001991,2]
[349485820,1737213043030,-718.296221,0.0001991,2]
[349485822,1737213043040,-184.197365,0.0001991,2]
[349485823,1737213043050,-184.197365,0.0001991,2]
[349485824,1737213043059,-151.0,0.0001991,2]
[349485825,1737213043069,-233.377542,0.0001991,2]
[349485826,1737213043078,-233.377542,0.0001991,2]
[349485828,1737213043088,-38880.46,0.0001993,2]
[349485829,1737213043097,-202.0,0.0001993,2]
[349485830,1737213043106,-514.0,0.0001997,2]
[349485831,1737213043115,-151.0,0.0001997,2]
[349485832,1737213043125,-929.91917,0.0001997,2]
[349485834,1737213043135,-929.91917,0.0001997,2]
[349485835,1737213043144,-151.0,0.0001997,2]
[349485836,1737213043154,-1058.665786,0.0001997,2]
[349485837,1737213043163,-1058.665786,0.0001997,2]
[349485838,1737213043173,-151.0,0.0001997,2]
[349485839,1737213043183,-718.296221,0.0001997,2]
[349485840,1737213043192,-718.296221,0.0001997,2]
[349485841,1737213043201,-184.197365,0.0001997,2]
[349485842,1737213043211,-184.197365,0.0001997,2]
[349485843,1737213043220,-151.0,0.0001997,2]
[349485844,1737213043229,-500.0,0.0001997,2]
[349485845,1737213043239,-150.10418236,0.0001997,2]
[349485847,1737213043248,-260.48949117,0.0001997,2]
[349485848,1737213043259,-233.377542,0.0001997,2]
[349485849,1737213043270,-233.377551,0.0001997,2]
[349485850,1737213043279,-150.0,0.0001997,2]
[349485851,1737213043288,-151.0,0.0001997,2]
[349485852,1737213043297,-1350.0,0.0001997,2]
[349485853,1737213043307,-1350.0,0.0001997,2]
[349485854,1737213043317,-1386.27732,0.0001997,2]
[349485855,1737213043327,-500.0,0.0001997,2]
[349485856,1737213043336,-1386.27732,0.0001997,2]
[349485857,1737213043346,-693.0,0.0001997,2]
[349485858,1737213043355,-268.978562,0.0001997,2]
[349485859,1737213043365,-151.0,0.0001997,2]
[349485860,1737213043374,-56280.0,0.0001997,3]
[349485861,1737213043383,-150.0,0.00019973,2]
[349485862,1737213043393,-170.83,0.00019986,2]
[349485863,1737213043402,-63369.09,0.00019995,10]
[349485864,1737213043412,-649.70320795,0.00019997,2]
[349485865,1737213043421,-150.0,0.00019997,2]
[349485866,1737213043431,-867.77619181,0.0002,2]
[349485867,1737213043439,-279466.60129549,0.0002,2]
[349485868,1737213043448,-32378.73000385,0.0002,2]
[349485869,1737213043458,-362.19834985,0.0002,2]
[349485870,1737213043466,-1465.9573553,0.0002,2]
[349485871,1737213043475,-2750.92363039,0.0002,2]
[349485872,1737213043484,-2184.27814788,0.0002,4]
[349485873,1737213043494,-4171.4780389,0.0002,2]
[349485874,1737213043502,-23485.37369853,0.0002,4]
[349485875,1737213043512,-1790.77987893,0.0002,2]
[349485876,1737213043520,-24432.52907915,0.0002,20]
[349485877,1737213043529,-628.2577731,0.0002,2]
[349485878,1737213043538,-705.05984263,0.0002,2]
[349485879,1737213043547,-5017.0,0.0002,5]
[349485880,1737213043556,-639.87109476,0.0002,2]
[349485881,1737213043565,-15638.38112909,0.0002,2]
[349485882,1737213043575,-99486.04358902,0.0002,2]
[349485883,1737213043585,-45656.84443511,0.0002,2]
[349485884,1737213043594,-13568.18057914,0.0002,2]
[349485885,1737213043603,-379.0,0.0002,2]
[349485886,1737213043613,-370.0,0.0002,2]
[349485887,1737213043623,-1051.40128218,0.0002,2]
[349485888,1737213043632,-300.0,0.0002,4]
[349485889,1737213043642,-6600.0,0.0002,2]
[349485890,1737213043652,-3149.45420022,0.0002,14]
[349485891,1737213043662,-2075.497483,0.0002,2]
[349485892,1737213043674,-2000.0,0.0002,2]
[349485893,1737213043684,-1000.0,0.0002,14]
[349485894,1737213043693,-154.839527,0.0002,14]
[349485895,1737213043703,-319.356524,0.0002,14]
[349485896,1737213043713,-929.91917,0.0002,2]
[349485897,1737213043724,-929.91917,0.0002,2]
[349485898,1737213043734,-929.91917,0.0002,2]
[349485899,1737213043745,-929.91917,0.0002,2]
[349485900,1737213043755,-929.91917,0.0002,2]
[349485901,1737213043765,-929.919179,0.0002,2]
[349485902,1737213043774,-151.0,0.0002,2]
[349485903,1737213043783,-151.0,0.0002,2]
[349485904,1737213043793,-151.0,0.0002,2]
[349485905,1737213043803,-718.296221,0.0002,2]
[349485906,1737213043813,-718.296218,0.0002,2]
[349485907,1737213043824,-184.197365,0.0002,2]
[349485908,1737213043835,-184.197373,0.0002,2]
[349485909,1737213043844,-366.0,0.0002,2]
[349485910,1737213043854,-151.0,0.0002,2]
[349485911,1737213043863,-159.0,0.0002,2]
[349485912,1737213043873,-1000.0,0.0002,2]
[349485913,1737213043881,-151.277411,0.0002,2]
[349485914,1737213043891,-1350.0,0.0002,2]
[349485915,1737213043901,-1350.0,0.0002,2]
[349485916,1737213043910,-1350.0,0.0002,2]
[349485917,1737213043921,-1350.0,0.0002,2]
[349485918,1737213043931,-1386.27732,0.0002,2]
[349485919,1737213043940,-1386.27732,0.0002,2]
[349485920,1737213043950,-1386.27732,0.0002,2]
[349485921,1737213043959,-1386.27732,0.0002,2]
[349485922,1737213043968,-231.0,0.0002,2]
[349485923,1737213043979,-151.0,0.0002,2]
[349485924,1737213043988,-151.0,0.0002,2]
[349485925,1737213043998,-2000.0,0.0002001,2]
[349485926,1737213044008,-3945.321192,0.0002002,2]
[349485927,1737213044018,-200.0,0.00020025,2]
[349485928,1737213044028,-500.0,0.00020036,2]
[349485929,1737213044038,-154.839527,0.00020038,10]
[349485930,1737213044047,-319.356524,0.00020038,10]
[349485931,1737213044056,-155.7340566,0.00020043,2]
[349485932,1737213044066,-1476.35,0.00020051,2]
[349485933,1737213044077,-152.0,0.00020094,4]
[349485934,1737213044087,-2458.5,0.00020098,2]
[349485935,1737213044096,-217.0,0.0002012,2]
[349485936,1737213044105,-1000.0,0.00020129,2]
[349485937,1737213044115,-1050.0,0.0002017,2]
[349485938,1737213044125,-500.0,0.00020173,2]
[349485939,1737213044135,-154.839527,0.00020174,2]
[349485940,1737213044144,-319.356524,0.00020174,2]
[349485941,1737213044155,-154.839527,0.00020175,10]
[349485942,1737213044164,-319.356524,0.00020175,10]
[349485943,1737213044174,-1998.59053603,0.00020198,18]
[349485944,1737213044183,-2000.0,0.00020199,2]
[349485945,1737213044193,-2000.0,0.00020199,2]
[349485946,1737213044203,-2000.0,0.00020199,2]
[349485947,1737213044212,-202.0,0.000202,2]
[349485948,1737213044222,-1871.16,0.000202,2]
[349485949,1737213044231,-187.857883,0.000202,2]
[349485950,1737213044385,-150.0,0.000202,2]
[349485951,1737213044395,-465.1411,0.000202,2]
[349485952,1737213044405,-1361.0967,0.000202,2]
[349485953,1737213044415,-150.0,0.0002021,4]
[349485954,1737213044426,-639.46097246,0.0002021,4]
[349485955,1737213044436,-180.05125378,0.0002021,4]
[349485956,1737213044446,-150.0,0.0002021,4]
[349485957,1737213044456,-321.75397639,0.0002021,4]
[349485958,1737213044466,-285.26084329,0.0002021,4]
[349485959,1737213044476,-150.0,0.0002021,4]
[349485960,1737213044485,-150.0,0.0002021,4]
[349485961,1737213044495,-150.0,0.0002021,4]
[349485962,1737213044505,-172.3228845,0.0002021,4]
[349485963,1737213044517,-150.0,0.0002021,4]
[349485964,1737213044527,-150.0,0.0002021,4]
[349485965,1737213044536,-357.0,0.00020224,2]
[349485966,1737213044546,-8878.0,0.00020224,2]
[349485967,1737213044556,-200.27,0.0002023,2]
[349485968,1737213044566,-639.46097246,0.00020253,4]
[349485969,1737213044576,-180.05125378,0.00020253,4]
[349485970,1737213044585,-321.75397639,0.00020253,4]
[349485971,1737213044595,-700.0,0.0002027,2]
[349485972,1737213044605,-500.0,0.0002027,2]
[349485973,1737213044614,-1000.0,0.00020273,14]
[349485974,1737213044624,-154.839527,0.00020274,14]
[349485975,1737213044633,-319.356524,0.00020274,14]
[349485976,1737213044642,-639.46097246,0.00020297,4]
[349485977,1737213044651,-180.05125378,0.00020297,4]
[349485978,1737213044661,-321.75397639,0.00020297,4]
[349485979,1737213044673,-465.1411,0.000203,2]
[349485980,1737213044683,-1361.0967,0.000203,2]
[349485981,1737213044693,-150.0,0.00020303,4]
[349485982,1737213044703,-500.0,0.0002031,2]
[349485983,1737213044714,-154.839527,0.00020312,10]
[349485984,1737213044724,-319.356524,0.00020312,10]
[349485985,1737213044734,-153.614307,0.0002034,10]
[349485986,1737213044744,-154.224661,0.0002034,10]
[349485987,1737213044755,-639.46097246,0.0002034,4]
[349485988,1737213044765,-180.05125378,0.0002034,4]
[349485989,1737213044775,-321.75397639,0.0002034,4]
[349485990,1737213044784,-187.39570594,0.00020349,2]
[349485991,1737213044793,-639.46097246,0.00020383,4]
[349485992,1737213044804,-180.05125378,0.00020383,4]
[349485993,1737213044814,-321.75397639,0.00020383,4]
[349485994,1737213044824,-150.0,0.00020397,4]
[349485995,1737213044834,-217.0,0.0002041,2]
[349485996,1737213044843,-179.133704,0.00020426,2]
[349485997,1737213044853,-639.46097246,0.00020427,4]
[349485998,1737213044863,-180.05125378,0.00020427,4]
[349485999,1737213044872,-321.75397639,0.00020427,4]